fUSD/lending_fUSD_20240216
["ID","MTS","AMOUNT","RATE_DAILY","PERIOD"]
[314212068,1708085449149,-500.0,0.00041095,30]
[314212069,1708085449159,-500.0,0.00041095,30]
[314212070,1708085449169,-500.0,0.00041095,30]
[314212071,1708085449178,-500.0,0.00041095,30]
[314212072,1708085449188,-577.92,0.00041095,7]
[314212073,1708085449198,-454.3787956,0.00041095,30]
[314212074,1708085449207,-500.0,0.00041095,30]
[314212075,1708085449216,-500.0,0.00041095,30]
[314212076,1708085449226,-500.0,0.00041095,30]
[314212077,1708085449235,-674.18115515,0.00041095,2]
[314212078,1708085449245,-500.0,0.00041095,30]
[314212079,1708085449254,-505.45411039,0.00041095,30]
[314212080,1708085449267,-500.0,0.00041095,30]
[314212081,1708085449276,-500.0,0.00041095,30]
[314212082,1708085449285,-500.0,0.00041095,30]
[314212083,1708085449295,-502.20995044,0.00041095,30]
[314212084,1708085449305,-515.33706477,0.00041095,30]
[314212085,1708085449315,-536.59785184,0.00041095,30]
[314212086,1708085449325,-500.0,0.00041095,30]
[314212087,1708085449334,-500.0,0.00041095,30]
[314212088,1708085449347,-500.0,0.00041095,30]
[314212089,1708085449357,-427.34707273,0.00041095,30]
[314212090,1708085449367,-521.8278041,0.00041095,30]
[314212091,1708085449376,-500.0,0.00041095,30]
[314212092,1708085449386,-500.0,0.00041095,30]
[314212093,1708085449395,-524.17903145,0.00041095,30]
[314212094,1708085449405,-529.89677726,0.00041095,30]
[314212095,1708085449416,-541.49479608,0.00041095,30]
[314212096,1708085449426,-499.7173677,0.00041095,30]
[314212097,1708085449437,-500.0,0.00041095,30]
[314212098,1708085449448,-503.49337513,0.00041095,30]
[314212099,1708085449458,-516.46068401,0.00041095,30]
[314212100,1708085449468,-500.0,0.00041095,30]
[314212101,1708085449477,-500.0,0.00041095,30]
[314212102,1708085449487,-543.32595861,0.00041095,30]
[314212103,1708085449498,-527.06553297,0.00041095,30]
[314212104,1708085449509,-500.0,0.00041095,30]
[314212105,1708085449519,-560.80830571,0.00041095,30]
[314212106,1708085449529,-538.9676061,0.00041095,30]
[314212107,1708085449539,-500.0,0.00041095,30]
[314212108,1708085449548,-500.0,0.00041095,30]
[314212109,1708085449557,-571.9995558,0.00041095,30]
[314212110,1708085449568,-151.0,0.00041095,7]
[314212111,1708085449577,-500.0,0.00041095,30]
[314212112,1708085449587,-500.0,0.00041095,30]
[314212113,1708085449597,-500.0,0.00041095,30]
[314212114,1708085449607,-500.0,0.00041095,30]
[314212115,1708085449616,-573.32215068,0.00041095,30]
[314212116,1708085449625,-554.45432506,0.00041095,30]
[314212117,1708085449636,-537.39399122,0.00041095,30]
[314212118,1708085449646,-500.0,0.00041095,30]
[314212119,1708085449655,-500.0,0.00041095,30]
[314212120,1708085449665,-500.0,0.00041095,30]
[314212121,1708085449674,-500.0,0.00041095,30]
[314212122,1708085449683,-500.0,0.00041095,30]
[314212123,1708085449694,-525.56784341,0.00041095,30]
[314212124,1708085449703,-500.0,0.00041095,30]
[314212125,1708085449712,-511.72608362,0.00041095,30]
[314212126,1708085449722,-509.72942185,0.00041095,30]
[314212127,1708085449731,-500.0,0.00041095,30]
[314212128,1708085449740,-554.95099141,0.00041095,30]
[314212129,1708085449749,-638.983871,0.00041095,30]
[314212130,1708085449758,-500.0,0.00041095,30]
[314212131,1708085449767,-500.0,0.00041095,30]
[314212132,1708085449776,-522.58185027,0.00041095,30]
[314212133,1708085449786,-519.9706386,0.00041095,30]
[314212134,1708085449795,-500.0,0.00041095,30]
[314212135,1708085449804,-516.19445505,0.00041095,30]
[314212136,1708085449813,-500.0,0.00041095,30]
[314212137,1708085449823,-535.02853452,0.00041095,30]
[314212138,1708085449832,-531.40493868,0.00041095,30]
[314212139,1708085449842,-500.0,0.00041095,30]
[314212140,1708085449852,-500.0,0.00041095,30]
[314212141,1708085449861,-500.0,0.00041095,30]
[314212142,1708085449871,-591.19536137,0.00041095,30]
[314212143,1708085449880,-500.0,0.00041095,30]
[314212144,1708085449890,-250.0,0.00041095,30]
[314212145,1708085449899,-500.0,0.00041095,30]
[314212146,1708085449909,-500.0,0.00041095,30]
[314212147,1708085449920,-607.69,0.00041095,30]
[314212148,1708085449930,-520.7216417,0.00041095,30]
[314212149,1708085449939,-500.0,0.00041095,30]
[314212150,1708085449948,-483.78958449,0.00041095,30]
[314212151,1708085449958,-551.32658348,0.00041095,30]
[314212152,1708085449967,-500.0,0.00041095,30]
[314212153,1708085449977,-500.0,0.00041095,30]
[314212154,1708085449986,-500.0,0.00041095,30]
[314212155,1708085449995,-500.0,0.00041095,30]
[314212156,1708085450005,-568.96588293,0.00041095,30]
[314212157,1708085450014,-525.44474841,0.00041095,30]
[314212158,1708085450024,-500.0,0.00041095,30]
[314212159,1708085450034,-537.6664727,0.00041095,30]
[314212160,1708085450043,-535.2577593,0.00041095,30]
[314212161,1708085450054,-451.21157674,0.00041095,30]
[314212162,1708085450063,-500.0,0.00041095,30]
[314212163,1708085450073,-500.0,0.00041095,30]
[314212164,1708085450082,-500.0,0.00041095,30]
[314212165,1708085450092,-500.0,0.00041095,30]
[314212166,1708085450102,-500.0,0.00041095,30]
[314212167,1708085450111,-500.0,0.00041095,30]
[314212168,1708085450121,-534.86639125,0.00041095,30]
[314212169,1708085450131,-559.37434714,0.00041095,30]
[314212170,1708085450140,-500.0,0.00041095,30]
[314212171,1708085450150,-500.0,0.00041095,30]
[314212172,1708085450160,-220.092946,0.00041095,30]
[314212173,1708085450171,-550.17305247,0.00041095,30]
[314212174,1708085450181,-523.08491718,0.00041095,30]
[314212175,1708085450191,-500.0,0.00041095,30]
[314212176,1708085450201,-547.45904562,0.00041095,30]
[314212177,1708085450212,-2559.47,0.00041095,30]
[314212178,1708085450222,-500.0,0.00041095,30]
[314212179,1708085450232,-500.0,0.00041095,30]
[314212180,1708085450241,-500.0,0.00041095,30]
[314212181,1708085450251,-529.01832972,0.00041095,30]
[314212182,1708085450261,-606.68116574,0.00041095,30]
[314212183,1708085450273,-500.0,0.00041095,30]
[314212184,1708085450283,-151.0,0.00041095,7]
[314212185,1708085450292,-2676.8,0.00041095,30]
[314212186,1708085450303,-500.0,0.00041095,30]
[314212187,1708085450312,-574.19104652,0.00041095,30]
[314212188,1708085450322,-500.0,0.00041095,30]
[314212189,1708085450331,-500.0,0.00041095,30]
[314212190,1708085450342,-500.0,0.00041095,30]
[314212191,1708085450351,-500.0,0.00041095,30]
[314212192,1708085450361,-532.68802346,0.00041095,30]
[314212193,1708085450370,-500.0,0.00041095,30]
[314212194,1708085450379,-389.48967344,0.00041095,30]
[314212195,1708085450388,-500.0,0.00041095,30]
[314212196,1708085450398,-500.0,0.00041095,30]
[314212197,1708085450407,-500.0,0.00041095,30]
[314212198,1708085450416,-560.91202352,0.00041095,30]
[314212199,1708085450425,-517.83914836,0.00041095,30]
[314212200,1708085450435,-500.0,0.00041095,30]
[314212201,1708085450444,-500.0,0.00041095,30]
[314212202,1708085450454,-1993.32,0.00041095,30]
[314212203,1708085450463,-500.0,0.00041095,30]
[314212204,1708085450472,-500.0,0.00041095,30]
[314212205,1708085450482,-523.98221864,0.00041095,30]
[314212206,1708085450491,-500.0,0.00041095,30]
[314212207,1708085450502,-500.0,0.00041095,30]
[314212208,1708085450511,-500.0,0.00041095,30]
[314212209,1708085450521,-541.58751457,0.00041095,30]
[314212210,1708085450530,-570.97918492,0.00041095,30]
[314212211,1708085450540,-500.0,0.00041095,30]
[314212212,1708085450550,-530.16795087,0.00041095,30]
[314212213,1708085450560,-519.02155341,0.00041095,30]
[314212214,1708085450569,-500.0,0.00041095,30]
[314212215,1708085450578,-500.0,0.00041095,30]
[314212216,1708085450588,-500.0,0.00041095,30]
[314212217,1708085450598,-562.4316671,0.00041095,30]
[314212218,1708085450607,-500.0,0.00041095,30]
[314212219,1708085450617,-500.0,0.00041095,30]
[314212220,1708085450627,-564.76163475,0.00041095,30]
[314212221,1708085450636,-515.11125118,0.00041095,30]
[314212222,1708085450646,-500.0,0.00041095,30]
[314212223,1708085450655,-518.99863655,0.00041095,30]
[314212224,1708085450665,-500.0,0.00041095,30]
[314212225,1708085450674,-555.11583266,0.00041095,30]
[314212226,1708085450684,-514.31429553,0.00041095,30]
[314212227,1708085450694,-500.0,0.00041095,30]
[314212228,1708085450703,-517.59316791,0.00041095,30]
[314212229,1708085450713,-500.0,0.00041095,30]
[314212230,1708085450722,-540.06820508,0.00041095,30]
[314212231,1708085450731,-530.24835162,0.00041095,30]
[314212232,1708085450740,-622.97755774,0.00041095,30]
[314212233,1708085450749,-528.74627869,0.00041095,30]
[314212234,1708085450759,-508.32,0.00041095,30]
[314212235,1708085450768,-500.0,0.00041095,30]
[314212236,1708085450777,-500.0,0.00041095,30]
[314212237,1708085450787,-221.99395604,0.00041095,30]
[314212238,1708085450797,-500.0,0.00041095,30]
[314212239,1708085450806,-500.0,0.00041095,30]
[314212240,1708085450816,-517.24885466,0.00041095,30]
[314212241,1708085450825,-506.70001701,0.00041095,30]
[314212242,1708085450835,-500.0,0.00041095,30]
[314212243,1708085450845,-500.0,0.00041095,30]
[314212244,1708085450855,-500.0,0.00041095,30]
[314212245,1708085450865,-500.0,0.00041095,30]
[314212246,1708085450874,-518.31730962,0.00041095,30]
[314212247,1708085450884,-513.02094441,0.00041095,30]
[314212248,1708085450893,-1013.16176488,0.00041095,7]
[314212249,1708085450903,-500.0,0.00041095,30]
[314212250,1708085450912,-500.0,0.00041095,30]
[314212251,1708085450923,-500.0,0.00041095,30]
[314212252,1708085450932,-553.67542073,0.00041095,30]
[314212253,1708085450942,-500.0,0.00041095,30]
[314212254,1708085450952,-592.44186288,0.00041095,30]
[314212255,1708085450961,-500.0,0.00041095,30]
[314212256,1708085450970,-500.0,0.00041095,30]
[314212257,1708085450980,-500.0,0.00041095,30]
[314212258,1708085450989,-511.34678017,0.00041095,30]
[314212259,1708085450999,-500.0,0.00041095,30]
[314212260,1708085451009,-218.20524839,0.00041095,30]
[314212261,1708085451019,-500.0,0.00041095,30]
[314212262,1708085451028,-500.0,0.00041095,30]
[314212263,1708085451038,-522.17839068,0.00041095,30]
[314212264,1708085451047,-192.0,0.00041095,7]
[314212265,1708085451057,-525.35155273,0.00041095,30]
[314212266,1708085451066,-500.0,0.00041095,30]
[314212267,1708085451077,-513.88455316,0.00041095,30]
[314212268,1708085451086,-503.75491126,0.00041095,30]
[314212269,1708085451096,-500.0,0.00041095,30]
[314212270,1708085451105,-500.0,0.00041095,30]
[314212271,1708085451115,-156.0,0.00041095,7]
[314212272,1708085451124,-531.68743403,0.00041095,30]
[314212273,1708085451134,-500.0,0.00041095,30]
[314212274,1708085451143,-519.17197243,0.00041095,30]
[314212275,1708085451153,-522.11984285,0.00041095,30]
[314212276,1708085451162,-500.0,0.00041095,30]
[314212277,1708085451173,-353.1308435,0.00041095,7]
[314212278,1708085451183,-500.0,0.00041095,30]
[314212279,1708085451192,-512.31219981,0.00041095,30]
[314212280,1708085451202,-500.0,0.00041095,30]
[314212281,1708085451320,-500.0,0.00041095,30]
[314212282,1708085451331,-536.54182757,0.00041095,30]
[314212283,1708085451340,-500.0,0.00041095,30]
[314212284,1708085451350,-500.0,0.00041095,30]
[314212285,1708085451360,-500.0,0.00041095,30]
[314212286,1708085451370,-528.81101581,0.00041095,30]
[314212287,1708085451380,-500.0,0.00041095,30]
[314212288,1708085451399,-500.0,0.00041095,2]
[314212289,1708085451410,-600.0,0.00041095,30]
[314212290,1708085451421,-500.0,0.00041095,30]
[314212291,1708085451431,-299.34012,0.00041095,2]
[314212292,1708085451441,-500.0,0.00041095,30]
[314212293,1708085451450,-549.53559489,0.00041095,30]
[314212294,1708085451460,-560.93281504,0.00041095,30]
[314212295,1708085451470,-4000.0,0.00041095,2]
[314212296,1708085451480,-200.0,0.00041098,20]
[314212297,1708085451490,-1500.0,0.000411,2]
[314212298,1708085451500,-1000.0,0.000411,2]
[314212299,1708085451510,-1626.7730007,0.000411,2]
[314212300,1708085451520,-401.0,0.000411,2]
[314212301,1708085451530,-1502.0,0.000411,2]
[314212302,1708085451540,-185.0,0.00041155,7]
[314212303,1708085451550,-800.0,0.00041197,20]
[314212304,1708085451559,-176.42331574,0.000412,33]
[314212305,1708085451569,-336.868088,0.00041207,30]
[314212306,1708085451579,-641.694203,0.00041207,30]
[314212307,1708085451589,-631.950941,0.00041207,30]
[314212308,1708085451599,-465.373123,0.00041207,30]
[314212309,1708085451609,-160.423551,0.00041207,30]
[314212310,1708085451619,-315.975471,0.00041207,30]
[314212311,1708085451628,-217.646319,0.00041207,30]
[314212312,1708085451639,-315.97547,0.00041207,30]
[314212313,1708085451648,-160.423551,0.00041207,30]
[314212314,1708085451658,-931.69523334,0.0004121,10]
[314212315,1708085451668,-1060.89403454,0.00041264,15]
[314212316,1708085451677,-1292.17,0.0004128,2]
[314212317,1708085451686,-185.0,0.00041292,7]
[314212318,1708085451696,-2371.98,0.000413,7]
[314212319,1708085451707,-174.55618684,0.000413,7]
[314212320,1708085451717,-174.55618684,0.000413,7]
[314212321,1708085451728,-174.55618684,0.000413,7]
[314212322,1708085451737,-174.55618684,0.000413,7]
[314212323,1708085451746,-174.55618684,0.000413,7]
[314212324,1708085451757,-174.55618684,0.000413,7]
[314212325,1708085451767,-174.55618684,0.000413,7]
[314212326,1708085451777,-174.55618684,0.000413,7]
[314212327,1708085451786,-174.55618684,0.000413,7]
[314212328,1708085451796,-174.55618684,0.000413,7]
[314212329,1708085451806,-174.55618684,0.000413,7]
[314212330,1708085451815,-174.55618684,0.000413,7]
[314212331,1708085451826,-174.55618684,0.000413,7]
[314212332,1708085451840,-174.55618684,0.000413,7]
[314212333,1708085451851,-174.55618684,0.000413,7]
[314212334,1708085451861,-174.55618684,0.000413,7]
[314212335,1708085451871,-174.55618684,0.000413,7]
[314212336,1708085451881,-174.55618684,0.000413,7]
[314212337,1708085451892,-174.55618684,0.000413,7]
[314212338,1708085451902,-174.55,0.000413,7]
[314212339,1708085451912,-158.38694998,0.000413,7]
[314212340,1708085451922,-158.38694998,0.000413,7]
[314212341,1708085451932,-158.38694998,0.000413,7]
[314212342,1708085451942,-158.38694998,0.000413,7]
[314212343,1708085451951,-158.38694998,0.000413,7]
[314212344,1708085451961,-158.38694998,0.000413,7]
[314212345,1708085451971,-158.38694998,0.000413,7]
[314212346,1708085451981,-158.38694998,0.000413,7]
[314212347,1708085451990,-158.38,0.000413,7]
[314212348,1708085452001,-150.11241153,0.000413,7]
[314212349,1708085452010,-150.11241153,0.000413,7]
[314212350,1708085452021,-150.11241153,0.000413,7]
[314212351,1708085452030,-150.11241153,0.000413,7]
[314212352,1708085452040,-150.11241153,0.000413,7]
[314212353,1708085452049,-150.11241153,0.000413,7]
[314212354,1708085452060,-150.11241153,0.000413,7]
[314212355,1708085452071,-150.11241153,0.000413,7]
[314212356,1708085452080,-150.11241153,0.000413,7]
[314212357,1708085452089,-150.11241153,0.000413,7]
[314212358,1708085452102,-150.11241153,0.000413,7]
[314212359,1708085452112,-150.11241153,0.000413,7]
[314212360,1708085452121,-150.11241153,0.000413,7]
[314212361,1708085452131,-150.11241153,0.000413,7]
[314212362,1708085452141,-150.11,0.000413,7]
[314212363,1708085452151,-152.95646626,0.000413,7]
[314212364,1708085452161,-152.95646626,0.000413,7]
[314212365,1708085452171,-152.95646626,0.000413,7]
[314212366,1708085452181,-152.95646626,0.000413,7]
[314212367,1708085452191,-152.95646626,0.000413,7]
[314212368,1708085452201,-152.95646626,0.000413,7]
[314212369,1708085452210,-152.95646626,0.000413,7]
[314212370,1708085452220,-152.95646626,0.000413,7]
[314212371,1708085452230,-152.95646626,0.000413,7]
[314212372,1708085452239,-152.95646626,0.000413,7]
[314212373,1708085452249,-152.95646626,0.000413,7]
[314212374,1708085452261,-152.95646626,0.000413,7]
[314212375,1708085452271,-152.95646626,0.000413,7]
[314212376,1708085452281,-152.95646626,0.000413,7]
[314212377,1708085452290,-152.95646626,0.000413,7]
[314212378,1708085452301,-152.95646626,0.000413,7]
[314212379,1708085452311,-152.95,0.000413,7]
[314212380,1708085452321,-159.0057697,0.000413,7]
[314212381,1708085452332,-159.0057697,0.000413,7]
[314212382,1708085452343,-159.0057697,0.000413,7]
[314212383,1708085452353,-159.0057697,0.000413,7]
[314212384,1708085452362,-159.0057697,0.000413,7]
[314212385,1708085452372,-159.0057697,0.000413,7]
[314212386,1708085452384,-159.0057697,0.000413,7]
[314212387,1708085452394,-159.0057697,0.000413,7]
[314212388,1708085452403,-159.0057697,0.000413,7]
[314212389,1708085452413,-159.0057697,0.000413,7]
[314212390,1708085452423,-159.0057697,0.000413,7]
[314212391,1708085452433,-159.0057697,0.000413,7]
[314212392,1708085452442,-159.0057697,0.000413,7]
[314212393,1708085452451,-159.0057697,0.000413,7]
[314212394,1708085452461,-159.0057697,0.000413,7]
[314212395,1708085452471,-159.0,0.000413,7]
[314212396,1708085452480,-500.0,0.00041369,7]
[314212397,1708085452489,-1000.0,0.00041369,7]
[314212398,1708085452498,-532.15,0.00041369,30]
[314212399,1708085452508,-463.04487341,0.00041369,7]
[314212400,1708085452518,-500.0,0.00041369,30]
[314212401,1708085452528,-500.0,0.00041369,7]
[314212402,1708085452538,-500.0,0.00041369,30]
[314212403,1708085452547,-559.20266147,0.00041369,30]
[314212404,1708085452557,-511.72084973,0.00041369,7]
[314212405,1708085452566,-500.0,0.00041369,7]
[314212406,1708085452576,-554.58696386,0.00041369,30]
[314212407,1708085452586,-509.29,0.00041369,30]
[314212408,1708085452595,-500.0,0.00041369,30]
[314212409,1708085452605,-500.0,0.00041369,30]
[314212410,1708085452614,-3915.01,0.00041369,30]
[314212411,1708085452624,-500.0,0.00041369,30]
[314212412,1708085452634,-755.64,0.00041369,30]
[314212413,1708085452644,-500.0,0.00041369,7]
[314212414,1708085452654,-500.0,0.00041369,30]
[314212415,1708085452663,-325.63823911,0.00041369,30]
[314212416,1708085452674,-170.11064494,0.00041369,30]
[314212417,1708085452683,-600.10751679,0.00041369,30]
[314212418,1708085452693,-577.92,0.00041369,7]
[314212419,1708085452702,-500.0,0.00041369,30]
[314212420,1708085452712,-500.0,0.00041369,30]
[314212421,1708085452722,-531.50142401,0.00041369,30]
[314212422,1708085452731,-500.0,0.00041369,30]
[314212423,1708085452741,-500.0,0.00041369,30]
[314212424,1708085452750,-500.0,0.00041369,30]
[314212425,1708085452759,-607.69,0.00041369,30]
[314212426,1708085452769,-440.68795411,0.00041369,30]
[314212427,1708085452778,-500.0,0.00041369,30]
[314212428,1708085452788,-500.0,0.00041369,30]
[314212429,1708085452797,-610.94076955,0.00041369,30]
[314212430,1708085452806,-593.18498037,0.00041369,30]
[314212431,1708085452816,-2559.47,0.00041369,30]
[314212432,1708085452825,-2676.8,0.00041369,30]
[314212433,1708085452834,-1993.32,0.00041369,30]
[314212434,1708085452844,-255.67738518,0.00041369,30]
[314212435,1708085452854,-500.0,0.00041369,30]
[314212436,1708085452864,-508.32,0.00041369,30]
[314212437,1708085452873,-500.0,0.00041369,30]
[314212438,1708085452883,-500.0,0.00041369,30]
[314212439,1708085452892,-292.05541301,0.00041369,30]
[314212440,1708085452902,-554.98102462,0.00041369,30]
[314212441,1708085452911,-500.0,0.00041369,30]
[314212442,1708085452921,-500.0,0.00041369,30]
[314212443,1708085452931,-150.0,0.00041384,2]
[314212444,1708085452941,-706.13,0.000414,4]
[314212445,1708085452951,-706.13,0.000414,4]
[314212446,1708085452960,-706.13,0.000414,4]
[314212447,1708085452970,-706.13,0.000414,4]
[314212448,1708085452980,-706.13,0.000414,4]
[314212449,1708085452989,-706.13,0.000414,4]
[314212450,1708085452998,-706.13,0.000414,4]
[314212451,1708085453008,-706.13,0.000414,4]
[314212452,1708085453017,-706.13,0.000414,4]
[314212453,1708085453027,-706.13,0.000414,4]
[314212454,1708085453036,-706.13,0.000414,4]
[314212455,1708085453046,-706.13,0.000414,4]
[314212456,1708085453055,-706.13,0.000414,4]
[314212457,1708085453064,-706.13,0.000414,4]
[314212458,1708085453073,-706.13,0.000414,4]
[314212459,1708085453083,-706.13,0.000414,4]
[314212460,1708085453092,-706.13,0.000414,4]
[314212461,1708085453102,-706.13,0.000414,4]
[314212462,1708085453111,-706.13,0.000414,4]
[314212463,1708085453120,-706.13,0.000414,4]
[314212464,1708085453129,-154.24,0.000414,4]
[314212465,1708085453139,-154.24,0.000414,4]
[314212466,1708085453149,-200.0,0.00041418,20]
[314212467,1708085453158,-185.0,0.00041429,7]
[314212468,1708085453168,-150.0,0.00041465,7]
[314212469,1708085453177,-150.0,0.00041465,7]
[314212470,1708085453197,-182.0,0.0004149,2]
[314212471,1708085453207,-3199.67849123,0.000415,5]
[314212472,1708085453217,-5105.28462412,0.000415,14]
[314212473,1708085453227,-2000.0,0.00041506,7]
[314212474,1708085453238,-200.0,0.00041506,7]
[314212475,1708085453249,-181.70070823,0.0004153,2]
[314212476,1708085453261,-185.0,0.00041566,7]
[314212477,1708085453274,-162.0,0.00041581,2]
[314212478,1708085453283,-150.0,0.00041581,2]
[314212479,1708085453293,-2835.0,0.00041581,2]
[314212480,1708085453303,-1368.0,0.00041581,2]
[314212481,1708085453312,-1254.0,0.00041581,2]
[314212482,1708085453322,-429.0,0.00041581,2]
[314212483,1708085453332,-858.0,0.00041581,2]
[314212484,1708085453343,-237.0,0.00041581,2]
[314212485,1708085453352,-454.0,0.00041581,2]
[314212486,1708085453362,-2161.445,0.00041581,2]
[314212487,1708085453371,-2871.0,0.00041581,2]
[314212488,1708085453380,-1000.0,0.000416,2]
[314212489,1708085453390,-1032.67,0.000416,7]
[314212490,1708085453399,-164.49529373,0.00041608,2]
[314212491,1708085453409,-200.0,0.0004161,15]
[314212492,1708085453419,-800.0,0.00041639,20]
[314212493,1708085453428,-600.0,0.00041643,7]
[314212494,1708085453438,-639.35689678,0.00041643,7]
[314212495,1708085453448,-1000.0,0.00041643,7]
[314212496,1708085453457,-532.15,0.00041643,30]
[314212497,1708085453467,-500.0,0.00041643,30]
[314212498,1708085453476,-500.0,0.00041643,7]
[314212499,1708085453486,-500.0,0.00041643,30]
[314212500,1708085453495,-500.0,0.00041643,7]
[314212501,1708085453504,-509.29,0.00041643,30]
[314212502,1708085453514,-500.0,0.00041643,30]
[314212503,1708085453523,-500.0,0.00041643,30]
[314212504,1708085453533,-3915.01,0.00041643,30]
[314212505,1708085453542,-755.64,0.00041643,30]
[314212506,1708085453551,-500.0,0.00041643,7]
[314212507,1708085453560,-500.0,0.00041643,30]
[314212508,1708085453569,-577.92,0.00041643,7]
[314212509,1708085453578,-500.0,0.00041643,30]
[314212510,1708085453587,-500.0,0.00041643,30]
[314212511,1708085453597,-500.0,0.00041643,30]
[314212512,1708085453606,-500.0,0.00041643,30]
[314212513,1708085453616,-500.0,0.00041643,30]
[314212514,1708085453625,-607.69,0.00041643,30]
[314212515,1708085453635,-265.70559513,0.00041643,30]
[314212516,1708085453645,-500.0,0.00041643,30]
[314212517,1708085453655,-2559.47,0.00041643,30]
[314212518,1708085453665,-2676.8,0.00041643,30]
[314212519,1708085453674,-1993.32,0.00041643,30]
[314212520,1708085453683,-500.0,0.00041643,30]
[314212521,1708085453693,-508.32,0.00041643,30]
[314212522,1708085453702,-500.0,0.00041643,30]
[314212523,1708085453712,-500.0,0.00041643,30]
[314212524,1708085453721,-594.62520103,0.00041643,30]
[314212525,1708085453731,-10000.0,0.00041671,4]
[314212526,1708085453741,-500.0,0.00041672,7]
[314212527,1708085453750,-500.0,0.00041672,7]
[314212528,1708085453759,-500.0,0.00041672,7]
[314212529,1708085453771,-6883.49994392,0.00041676,2]
[314212530,1708085453783,-3308.0,0.000417,87]
[314212531,1708085453793,-1920.72384079,0.000417,2]
[314212532,1708085453804,-185.0,0.00041703,7]
[314212533,1708085453815,-157.18207369,0.00041715,60]
[314212534,1708085453825,-1060.89403454,0.00041718,16]
[314212535,1708085453835,-454.48,0.00041725,2]
[314212536,1708085453845,-253.78506159,0.000418,10]
[314212537,1708085453856,-24034.12729336,0.00041834,4]
[314212538,1708085453866,-150.0,0.00041835,7]
[314212539,1708085453875,-645.43170176,0.00041839,7]
[314212540,1708085453885,-500.0,0.00041839,30]
[314212541,1708085453895,-523.79134778,0.00041839,15]
[314212542,1708085453904,-551.55411845,0.00041839,9]
[314212543,1708085453914,-500.0,0.00041839,30]
[314212544,1708085453925,-500.0,0.00041839,30]
[314212545,1708085453936,-500.0,0.00041839,30]
[314212546,1708085453948,-500.0,0.00041839,30]
[314212547,1708085453958,-500.0,0.00041839,30]
[314212548,1708085453968,-239.70892614,0.00041839,30]
[314212549,1708085453978,-506.95688496,0.00041839,30]
[314212550,1708085453987,-418.71516764,0.00041839,30]
[314212551,1708085453996,-172.04317366,0.00041839,30]
[314212552,1708085454006,-500.45254752,0.00041839,30]
[314212553,1708085454016,-522.5600601,0.00041839,30]
[314212554,1708085454025,-500.0,0.00041839,30]
[314212555,1708085454034,-503.94935546,0.00041839,30]
[314212556,1708085454043,-315.51308005,0.00041839,30]
[314212557,1708085454052,-502.99679477,0.00041839,30]
[314212558,1708085454062,-500.0,0.00041839,30]
[314212559,1708085454071,-503.55455488,0.00041839,30]
[314212560,1708085454080,-501.68696234,0.00041839,30]
[314212561,1708085454091,-500.0,0.00041839,30]
[314212562,1708085454100,-500.0,0.00041839,30]
[314212563,1708085454109,-500.0,0.00041839,30]
[314212564,1708085454119,-153.0,0.0004184,7]
[314212565,1708085454129,-185.0,0.0004184,7]
[314212566,1708085454273,-5800.0,0.00041841,2]
[314212567,1708085454282,-5800.0,0.0004185,2]